Cogmind - Beta 13 @@@ ROGUE MODE // 2024.04.06 @ 17:41:10 Player: Flex Pexico Result: Destroyed by H-66 Slayer with Heavy Assault Rifle Performance ------------- Evolutions (5) 2500 Regions Visited (9) 1800 Robots Destroyed (72) 360 Value Destroyed (1557) 1557 Prototype IDs (28) 560 Alien Tech Used (0) 0 Bonus (800) 800 TOTAL SCORE: 7577 Bonus ------- Entered DSFs 500 Aligned with FarCom 300 Cogmind --------- Core Integrity 0/1000 Matter 35/300 Energy 74/100 System Corruption 0% Temperature Cool (0) Movement Core (100) Ox1 Location -5/Factory Parts ------- > --- POWER (1) -------- (None) > --- PROPULSION (5) --- (None) > --- UTILITY (9) ------ Improved Signal Interpreter 0b10 Alert Chip > --- WEAPON (2) ------- Katana Katana > --- INVENTORY (5) ---- Improved Deuterium Engine Long-range Missile Launcher Heavy Mace Katana Peak State ------------ > --- POWER ------------ Angular Momentum Engine > --- PROPULSION ------- Improved VTOL Module Improved VTOL Module Improved VTOL Module Xenon Bombardment Thruster > --- UTILITY ---------- Improved Signal Interpreter 0b10 Alert Chip Transmission Jammer Improved Reaction Control System Hacking Suite Mini Drone Bay > --- WEAPON ----------- Heavy Machine Gun Heavy Machine Gun > --- INVENTORY -------- Improved Deuterium Engine Angular Momentum Engine Nuclear Pulse Thruster Heavy Mace [Rating: 59] Favorites ----------- Power Light Deuterium Engine Engine Light Deuterium Engine Power Core Light Nuclear Core Propulsion Improved VTOL Module Treads Light Treads Leg Titanium Leg Wheel Wheel Flight Unit Improved VTOL Module Utility Transport Network Coupler Device Sensor Array Storage Medium Storage Unit Processor Transport Network Coupler Hackware Hacking Suite Protection Hardened Medium Armor Plating Weapon Light Assault Rifle Energy Gun Medium Laser Ballistic Gun Light Assault Rifle Launcher Mini Grenade Launcher Impact Weapon Heavy Mace Slashing Weapon Katana Build | -11 -10 -10 -10 -9 -8 -7 -6 -6 -5 ------- Run | Yrd Mat Min Exi Min Mat Fac Fac DSF Fac Slots Evolved 10 | . . . . . 4 2 2 . 2 Power . | . . . . . . . . . . Propulsion 3 | . . . . . 1 1 . . 1 Utility 7 | . . . . . 3 1 2 . 1 Weapon . | . . . . . . . . . . Parts Attached 93 | 6 7 7 1 . 29 19 6 3 15 Power 11 | 1 1 2 . . 1 2 2 1 1 Engine 8 | 1 1 1 . . 1 2 . 1 1 Core 3 | . . 1 . . . . 2 . . Reactor . | . . . . . . . . . . Propulsion 22 | 2 1 . . . 9 5 . 1 4 Treads 3 | 2 . . . . 1 . . . . Leg 2 | . . . . . 2 . . . . Wheel 7 | . 1 . . . 4 . . . 2 Hover . | . . . . . . . . . . Flight 10 | . . . . . 2 5 . 1 2 Utility 25 | 1 2 1 1 . 7 5 3 . 5 Device 15 | . 2 . 1 . 1 3 3 . 5 Storage 3 | 1 . 1 . . 1 . . . . Processor 3 | . . . . . 2 1 . . . Hackware 1 | . . . . . . 1 . . . Protection 3 | . . . . . 3 . . . . Artifact . | . . . . . . . . . . Weapon 35 | 2 3 4 . . 12 7 1 1 5 Energy Gun 12 | . 1 2 . . 6 3 . . . Energy Cannon . | . . . . . . . . . . Ballistic Gun 6 | 2 1 . . . . . 1 . 2 Ballistic Cannon . | . . . . . . . . . . Launcher 9 | . . 2 . . 5 1 . 1 . Special Weapon . | . . . . . . . . . . Impact Weapon 5 | . . . . . 1 3 . . 1 Slashing Weapon 3 | . 1 . . . . . . . 2 Piercing Weapon . | . . . . . . . . . . Special Melee Weapon . | . . . . . . . . . . Unidentified Prototypes 5 | . . . . . 2 3 . . . Parts Lost 33 | . 4 2 . . 3 7 . 5 12 Power 4 | . . 1 . . . 2 . 1 . Propulsion 14 | . 2 . . . 2 1 . 1 8 Utility 9 | . . . . . 1 2 . 2 4 Weapon 6 | . 2 1 . . . 2 . 1 . Highest Loss Streak 6 | . 3 2 . . 1 5 . 5 6 To Critical Strikes . | . . . . . . . . . . Average Slot Usage (%) 72 | . 82 84 85 85 82 59 77 76 40 Engine 7 | . 14 9 . . 6 6 4 . 2 Core 2 | . . 3 14 14 2 . 1 4 . Treads 2 | . 8 . . . 2 . . . . Wheel 7 | . 8 14 14 14 14 . . . . Flight 9 | . . . . . . 22 26 24 10 Device 8 | . 11 14 14 14 11 3 5 11 5 Storage 7 | . 14 14 14 14 9 . . . . Processor 9 | . . . . . 11 17 20 16 11 Protection 1 | . . . . . 6 . . . . Energy Gun 5 | . 6 7 14 14 11 1 . . . Ballistic Gun 5 | . 18 9 . . . . 4 3 1 Launcher 3 | . . 11 14 14 5 . . . . Impact Weapon 2 | . . . . . . 5 6 6 1 Naked Turns . | . . . . . . . . . . Heaviest Build 39 | 12 14 19 19 19 39 22 19 20 24 Greatest Support 42 | 40 40 10 10 10 42 20 20 21 24 Greatest Overweight (x) 4 | . 4 1 1 1 3 1 . . 3 Average Overweight (x) . | . . 1 1 1 1 . . . . Largest Inventory Capacity 15 | 8 8 10 10 10 15 5 5 5 5 Average Capacity 7 | 7 8 8 10 10 10 5 5 5 5 Most Carried 10 | 6 8 9 10 9 10 5 3 5 5 Average Carried 6 | 2 7 8 8 8 8 4 2 2 3 Final Capacity 15 | 8 8 10 10 10 15 5 5 5 5 Final Carried 10 | 6 7 9 8 9 10 3 2 4 4 Class Distribution -------------------- 47% | Mutant 26% | Scout 15% | Scavenger-Skirmisher 3% | Ninja 3% | Skirmisher Dominant Class ---------------- Mutant | -10/Materials Mutant | -10/Mines Mutant | -10/Exiles Skirmisher | -9/Mines Scavenger-Skirmisher | -8/Materials Scout | -7/Factory Ninja | -6/Factory Ninja | -6/DSF Mutant | -5/Factory Resources | -11 -10 -10 -10 -9 -8 -7 -6 -6 -5 ----------- Run | Yrd Mat Min Exi Min Mat Fac Fac DSF Fac Matter Collected 1339 | 102 334 138 83 . 182 287 55 57 101 Remotely . | . . . . . . . . . . Salvage Created 1657 | 113 432 133 . . 297 461 . 63 158 Parts 125 | 15 41 10 . . 22 22 . 9 6 Haulers Intercepted 4 | . . . . . 2 2 . . . Recyclers Shooed 6 | . 3 . . . 2 . . . 1 Parts Field Recycled . | . . . . . . . . . . Retrieved Matter . | . . . . . . . . . . Parts Self-Destructed . | . . . . . . . . . . Prevented . | . . . . . . . . . . Kills | -11 -10 -10 -10 -9 -8 -7 -6 -6 -5 ------- Run | Yrd Mat Min Exi Min Mat Fac Fac DSF Fac Combat Hostiles Destroyed 46 | . 10 13 . . 10 5 . 3 5 Melee 2 | . . . . . . . . 1 1 Guns 19 | . 10 2 . . 1 2 . . 4 AOE 24 | . . 11 . . 9 3 . 1 . Classes Destroyed 14 | 2 4 . . . 3 3 . 1 1 Worker 5 | . . . . . 1 4 . . . Builder 5 | . . . . . . 5 . . . Tunneler 3 | 2 . . . . . 1 . . . Hauler 4 | . . . . . 2 2 . . . Recycler 3 | 1 1 . . . 1 . . . . Operator 3 | . 1 . . . . 1 . . 1 Watcher 3 | . 3 . . . . . . . . Swarmer 23 | . 4 9 . . 6 . . . 4 Cutter 2 | . . . . . . . . 2 . Grunt 14 | . 6 4 . . 3 1 . . . Sentry 1 | . . . . . 1 . . . . Specialist 3 | . . . . . . 2 . 1 . Hunter 1 | . . . . . . . . . 1 Programmer 2 | . . . . . . 2 . . . Best Kill Streak 6 | 3 4 6 . . 6 5 . 3 4 Combat Bots Only 6 | . 4 6 . . 5 3 . 3 4 Max Kills in Single Turn 3 | 1 1 3 . . 2 2 . 1 1 Gunslinging . | . . . . . . . . . . Exploded 3 | . . 3 . . 2 1 . 1 . Melee 1 | . . . . . . . . 1 1 Uniques/NPCs Destroyed . | . . . . . . . . . . Combat | -11 -10 -10 -10 -9 -8 -7 -6 -6 -5 -------- Run | Yrd Mat Min Exi Min Mat Fac Fac DSF Fac Hostile Shots Fired 491 | . 99 24 . . 77 69 . 32 190 Missed 163 | . 22 9 . . 32 26 . 14 60 Damage Taken 5096 | . 798 209 . . 626 754 . 549 2160 Core 1877 | . 165 59 . . 79 318 . 243 1013 Absorbed by Shields 112 | . . . . . . 112 . . . Core Remaining (%) 64 | 100 . . . 10 85 54 . 71 . Volleys Fired 164 | 5 85 17 . . 31 13 . 3 10 Largest 2 | 2 2 2 . . 2 2 . 1 2 Hottest 143 | 40 70 80 . . 126 143 . 43 60 Shots Fired 260 | 10 136 30 . . 43 18 . 3 20 Gun 219 | 10 136 17 . . 25 11 . . 20 Cannon . | . . . . . . . . . . Launcher 41 | . . 13 . . 18 7 . 3 . Special . | . . . . . . . . . . Kinetic 167 | 10 122 15 . . . . . . 20 Thermal 52 | . 14 2 . . 25 11 . . . Explosive 41 | . . 13 . . 18 7 . 3 . Electromagnetic . | . . . . . . . . . . Robot Hit Streak 18 | 3 18 6 . . 5 9 . . 3 Robot Miss Streak 6 | 2 3 2 . . 3 2 . 3 6 Penetration Max . | . . . . . . . . . . Secondary Targets 2 | . 1 . . . . . . . 1 Max Gunslinging Chain 1 | . 1 . . . . . . . 1 Shots Hit Robots 178 | 7 93 13 . . 27 24 . 2 12 Core Hits 106 | 6 34 15 . . 20 21 . 2 8 Critical Kills . | . . . . . . . . . . Critical Parts Destroyed 1 | . . . . . . 1 . . . Critical Strikes 2 | . 1 . . . . 1 . . . Burn 1 | . 1 . . . . . . . . Smash 1 | . . . . . . 1 . . . Melee Attacks 101 | . . . . . . 70 11 5 15 Impact 94 | . . . . . . 70 11 5 8 Slashing 7 | . . . . . . . . . 7 Piercing . | . . . . . . . . . . Sneak Attacks 11 | . . . . . . 11 . . . Combat Hostiles . | . . . . . . . . . . Follow-up Attacks . | . . . . . . . . . . Damage Inflicted 5956 | 80 785 948 . . 1279 2209 . 262 393 Guns 1647 | 80 785 66 . . 300 218 . . 198 Cannons . | . . . . . . . . . . Explosions 2686 | . . 882 . . 979 652 . 173 . Melee 1591 | . . . . . . 1310 . 89 192 Ramming 32 | . . . . . . 29 . . 3 Kinetic 1029 | 80 698 53 . . . . . . 198 Thermal 618 | . 87 13 . . 300 218 . . . Explosive 2686 | . . 882 . . 979 652 . 173 . Electromagnetic . | . . . . . . . . . . Impact 1465 | . . . . . . 1310 . 89 66 Slashing 126 | . . . . . . . . . 126 Piercing . | . . . . . . . . . . Highest Corruption . | . . . . . . . . . . Average Corruption . | . . . . . . . . . . Corruption Purged . | . . . . . . . . . . Corruption Blocked . | . . . . . . . . . . Overload Shots . | . . . . . . . . . . Overflow Damage 548 | . . 94 . . 23 415 . 14 2 Projectiles . | . . . . . . . . . . Explosions 131 | . . 94 . . 23 9 . 5 . Melee 417 | . . . . . . 406 . 9 2 Knockbacks 3 | . . . . . . 2 . . 1 Impact 3 | . . . . . . 2 . . 1 Kinetic . | . . . . . . . . . . Secondary . | . . . . . . . . . . Self-Inflicted Damage 205 | . . 58 . . 74 12 . 60 1 Shots 6 | . . 2 . . 2 . . 2 . Rammed 14 | . . . . . . 13 . . 1 Targets Rammed 14 | . . . . . . 13 . . 1 Kicked . | . . . . . . . . . . Crushed . | . . . . . . . . . . Highest Temperature 338 | . 100 26 . . 338 168 . . 12 Average Temperature 53 | . 27 10 . . 94 82 . . 6 Received Heat Transfer 600 | . 282 54 . . 72 102 . . 90 Effects 1 | . . . . . 1 . . . . Energy Bleed 1 | . . . . . 1 . . . . Siege Activations . | . . . . . . . . . . Robots Corrupted . | . . . . . . . . . . Combat Hostiles . | . . . . . . . . . . Parts Fried 14 | . . . . . . 12 . . 2 Impact Corruptions 17 | . . . . . . 14 . 2 1 Robots Melted . | . . . . . . . . . . Combat Hostiles . | . . . . . . . . . . Parts Melted 4 | . . . . . 2 2 . . . Heat Transferred 1409 | . 333 37 . . 666 373 . . . Parts Sabotaged . | . . . . . . . . . . Parts Stolen . | . . . . . . . . . . Parts Stripped . | . . . . . . . . . . Power Chain Reactions . | . . . . . . . . . . Alert | -11 -10 -10 -10 -9 -8 -7 -6 -6 -5 ------- Run | Yrd Mat Min Exi Min Mat Fac Fac DSF Fac Peak Influence 356 | 15 306 356 . . 237 240 109 141 244 Initial 98 | . 9 8 . . . 98 14 79 60 Average 89 | 4 90 203 . . 73 62 39 102 125 Maximum Alert Level 1 | . 1 1 . . 1 1 . . 1 Low Security (%) 85 | 100 91 40 . 100 87 94 100 100 75 Level 1 14 | . 8 59 . . 12 5 . . 24 Level 2 . | . . . . . . . . . . Level 3 . | . . . . . . . . . . Level 4 . | . . . . . . . . . . Level 5 . | . . . . . . . . . . High Security . | . . . . . . . . . . Max Security . | . . . . . . . . . . Squads Dispatched 23 | . 4 . . . 2 8 5 1 3 Investigation 9 | . 3 . . . 1 . 4 . 1 Extermination 2 | . . . . . . 2 . . . Reinforcement 12 | . 1 . . . 1 6 1 1 2 Assault . | . . . . . . . . . . Garrison . | . . . . . . . . . . Intercept . | . . . . . . . . . . Searches Triggered . | . . . . . . . . . . Construction Impeded 1 | . . . . . . 1 . . . Haulers Reinforced 1 | . . . . . . 1 . . . Active Scanning Responses . | . . . . . . . . . . Cargo Convoy Interrupts . | . . . . . . . . . . Stealth | -11 -10 -10 -10 -9 -8 -7 -6 -6 -5 --------- Run | Yrd Mat Min Exi Min Mat Fac Fac DSF Fac Distress Signals 5 | . 2 . . . 2 1 . . . Communications Jammed 13 | . . . . . . . 10 . 3 Distress Signals 13 | . . . . . . . 10 . 3 Times Spotted 104 | . 24 10 . . 17 20 2 9 22 Peak Tracking Total 7 | . 5 3 . . 6 7 6 5 5 Tactical Retreats 15 | . 3 . . . . 6 2 . 4 Traps | -11 -10 -10 -10 -9 -8 -7 -6 -6 -5 ------- Run | Yrd Mat Min Exi Min Mat Fac Fac DSF Fac Traps Triggered 7 | . 1 . . . . 5 . 1 . Indirectly . | . . . . . . . . . . Trap Hack Attempts . | . . . . . . . . . . Triggered . | . . . . . . . . . . Disarmed . | . . . . . . . . . . Reprogrammed . | . . . . . . . . . . Reused . | . . . . . . . . . . Traps Extracted . | . . . . . . . . . . Installed . | . . . . . . . . . . Triggered . | . . . . . . . . . . Machines | -11 -10 -10 -10 -9 -8 -7 -6 -6 -5 ---------- Run | Yrd Mat Min Exi Min Mat Fac Fac DSF Fac Machines Disabled 7 | . . 4 . . 2 . . 1 . Max in Single Turn 2 | . . 2 . . 1 . . 1 . Machines Repaired . | . . . . . . . . . . Machines Dismantled . | . . . . . . . . . . Machines Sabotaged . | . . . . . . . . . . Overloaded Fab Kills . | . . . . . . . . . . Hacking | -11 -10 -10 -10 -9 -8 -7 -6 -6 -5 --------- Run | Yrd Mat Min Exi Min Mat Fac Fac DSF Fac Machines Accessed 23 | . 6 2 1 . 2 3 4 . 5 Terminals 19 | . 6 1 . . 2 3 2 . 5 Fabricators . | . . . . . . . . . . Repair Stations . | . . . . . . . . . . Recycling Units . | . . . . . . . . . . Scanalyzers . | . . . . . . . . . . Garrison Access 2 | . . . . . . . 2 . . Total Hacks 58 | . 17 3 1 . 7 6 13 . 11 Successful 21 | . 6 1 1 . 3 2 3 . 5 Failed 37 | . 11 2 . . 4 4 10 . 6 Catastrophic 6 | . 2 . . . 1 1 1 . 1 Database Lockouts . | . . . . . . . . . . Manual 27 | . 11 2 1 . 1 6 1 . 5 Terminals 50 | . 17 2 . . 7 6 7 . 11 Fabricators . | . . . . . . . . . . Repair Stations . | . . . . . . . . . . Recycling Units . | . . . . . . . . . . Scanalyzers . | . . . . . . . . . . Garrison Access 6 | . . . . . . . 6 . . Terminal Hacks 21 | . 6 1 1 . 3 2 3 . 5 Open Door 1 | . . 1 . . . . . . . Open DSF 3 | . . . . . . . 1 . 2 Terminal Index 3 | . 1 . . . . . 1 . 1 Unreport Threat 2 | . . . . . . 1 . . 1 Locate Traps 3 | . 1 . . . 1 . . . 1 Transport Status 2 | . 1 . . . 1 . . . . Recall Investigation 2 | . 2 . . . . . . . . Recall Reinforcements 1 | . . . . . . 1 . . . Hauler Manifests 1 | . . . . . 1 . . . . Registered Components 1 | . 1 . . . . . . . . Zone Layout 1 | . . . . . . . 1 . . Derelict Proto ID Bank 1 | . . . 1 . . . . . . Fabricator Hacks . | . . . . . . . . . . Repair Station Hacks . | . . . . . . . . . . Recycling Unit Hacks . | . . . . . . . . . . Scanalyzer . | . . . . . . . . . . Garrison Access Hacks . | . . . . . . . . . . Unauthorized Hacks . | . . . . . . . . . . Terminals . | . . . . . . . . . . Fabricators . | . . . . . . . . . . Repair Stations . | . . . . . . . . . . Recycling Units . | . . . . . . . . . . Scanalyzers . | . . . . . . . . . . Garrison Access . | . . . . . . . . . . Data Cores Recovered . | . . . . . . . . . . Used . | . . . . . . . . . . Hacking Detections 15 | . 5 1 . . 1 1 4 . 3 Full Trace Events 11 | . 4 1 . . 1 . 4 . 1 Feedback Events . | . . . . . . . . . . Feedback Blocked . | . . . . . . . . . . Robot Schematics Acquired . | . . . . . . . . . . Robots Built . | . . . . . . . . . . Authchips . | . . . . . . . . . . Time . | . . . . . . . . . . Total Robot Build Rating . | . . . . . . . . . . Part Schematics Acquired . | . . . . . . . . . . Parts Built . | . . . . . . . . . . Authchips . | . . . . . . . . . . Time . | . . . . . . . . . . Total Part Build Rating . | . . . . . . . . . . Parts Repaired . | . . . . . . . . . . Time . | . . . . . . . . . . Parts Recycled . | . . . . . . . . . . Recycled Matter . | . . . . . . . . . . Retrieved Matter . | . . . . . . . . . . Retrieved Components . | . . . . . . . . . . Parts Scanalyzed . | . . . . . . . . . . Part Schematics Acquired . | . . . . . . . . . . Parts Damaged . | . . . . . . . . . . Bothacking | -11 -10 -10 -10 -9 -8 -7 -6 -6 -5 ------------ Run | Yrd Mat Min Exi Min Mat Fac Fac DSF Fac Used RIF Installer . | . . . . . . . . . . Robots Hacked . | . . . . . . . . . . Non-combat . | . . . . . . . . . . Combat . | . . . . . . . . . . Robot Hacks Applied . | . . . . . . . . . . Relay Couplers Released . | . . . . . . . . . . Fabnet Peak Effective % . | . . . . . . . . . . Robots Rewired . | . . . . . . . . . . Allies Hacked . | . . . . . . . . . . Hacks Repelled . | . . . . . . . . . . Allies | -11 -10 -10 -10 -9 -8 -7 -6 -6 -5 -------- Run | Yrd Mat Min Exi Min Mat Fac Fac DSF Fac Total Allies 3 | . . 3 . . . . . . . Largest Group 3 | . . 3 . . . . . . . Highest-Rated Group 40 | . . 40 . . . . . . . Highest-Rated Ally 16 | . . 16 . . . . . . . Total Orders 8 | . . . . . 5 . . . 3 EXPLORE 8 | . . . . . 5 . . . 3 Ally Attacks 6 | . . . . . 6 . . . . Total Damage . | . . . . . . . . . . Kills . | . . . . . . . . . . Allies Corrupted . | . . . . . . . . . . Allies Melted . | . . . . . . . . . . Intel | -11 -10 -10 -10 -9 -8 -7 -6 -6 -5 ------- Run | Yrd Mat Min Exi Min Mat Fac Fac DSF Fac Robot Analysis Total . | . . . . . . . . . . Derelict Logs Recovered 1 | . . 1 . . . . . . . Drone Launches 11 | . . . . . 6 . . . 5 Drone Recoveries 5 | . . . . . . . . . 5 Exploration | -11 -10 -10 -10 -9 -8 -7 -6 -6 -5 ------------- Run | Yrd Mat Min Exi Min Mat Fac Fac DSF Fac Turns Passed 5522 | 111 1051 628 324 61 1040 1742 178 83 304 Spaces Moved 4909 | 56 640 588 338 58 579 1641 424 133 452 Core 389 | 9 36 . . . . 243 . . 101 Treads 222 | 47 125 . . . 50 . . . . Legs . | . . . . . . . . . . Wheels 2001 | . 479 588 338 58 529 . . . 9 Hover . | . . . . . . . . . . Flight 2297 | . . . . . . 1398 424 133 342 Fastest Speed 26 | 50 95 95 95 95 93 26 26 26 27 Average Speed 69 | 142 114 95 95 95 121 38 26 26 42 Slowest Speed 250 | 160 250 95 95 95 240 100 26 29 200 Overloaded Moves . | . . . . . . . . . . Propulsion Burnouts . | . . . . . . . . . . Robots Hopped . | . . . . . . . . . . Cave-ins Triggered . | . . . . . . . . . . Exploration Rate (%) 48 | 5 87 97 77 21 44 37 10 88 16 Regions Visited 9 Branch Regions 3 Pre-discovered Areas 2 | . . 2 . . . . . . . Known Exits Taken 1 | . . . . . . . 1 . . Unknown Exits Taken 7 | 1 1 1 1 1 1 1 . . . Scrap Searched . | . . . . . . . . . . Spaces Dug 76 | . . . . . 8 53 11 . 4 Terrain Destroyed 340 | . . 113 . . 102 72 11 38 4 Melee 68 | . . . . . . 53 11 . 4 Projectile . | . . . . . . . . . . AOE 272 | . . 113 . . 102 19 . 38 . Terrain Rammed . | . . . . . . . . . . Walls Destroyed . | . . . . . . . . . . Machines Disabled . | . . . . . . . . . . Actions | -11 -10 -10 -10 -9 -8 -7 -6 -6 -5 --------- Run | Yrd Mat Min Exi Min Mat Fac Fac DSF Fac Total 6605 | 80 849 629 341 63 871 2608 472 166 526 Wait 1132 | . 103 12 . 5 206 769 22 1 14 Move 4900 | 55 639 587 337 57 578 1640 423 132 452 Hop . | . . . . . . . . . . Pick Up 73 | 13 9 4 1 1 9 15 6 4 11 Fast Attach 15 | . 1 . . . 7 5 . . 2 Attach 54 | 6 6 2 1 . 9 12 4 2 12 Detach 10 | . 1 . . . 5 2 . . 2 Swap 25 | . . 5 . . 13 3 2 1 1 Drop 46 | 1 5 2 2 . 13 12 4 . 7 Fire 164 | 5 85 17 . . 31 13 . 3 10 Melee 100 | . . . . . . 70 11 5 14 Ram 14 | . . . . . . 13 . . 1 Kick . | . . . . . . . . . . Crush . | . . . . . . . . . . Escape Stasis 72 | . . . . . . 54 . 18 . Rewire . | . . . . . . . . . . Trap . | . . . . . . . . . . Miscellaneous . | . . . . . . . . . . Route ------- -11/Scrapyard -10/Materials (discovered 3 exits: [*Mat x2] / *Min) -10/Mines (discovered 3 exits: [*Mat x2] / *Exi) -10/Exiles -9/Mines -8/Materials (discovered 2 exits: *Fac x2) -7/Factory -6/Factory -6/DSF -5/Factory History --------- Turn | Location | Event 31 | -11/Scrapyard | Discovered new exit (range 16) 112 | -11/Scrapyard | Entered Materials 304 | -10/Materials | Build established: Mutant 391 | -10/Materials | Discovered new exit (range 12) 440 | -10/Materials | Core integrity fell below 50% 462 | -10/Materials | Lost 3 parts (2n1w) 648 | -10/Materials | Discovered new exit (range 14) 1116 | -10/Materials | Discovered new exit (range 14) 1163 | -10/Materials | Entered Mines 1188 | -10/Mines | Learned location of Storage (-7) 1215 | -10/Mines | Met a Derelict bent on vengeance 1246 | -10/Mines | Found the Drone Emporium 1250 | -10/Mines | Found Prototype Device 1579 | -10/Mines | Core integrity fell below 20% 1633 | -10/Mines | Discovered new exit (range 5) 1640 | -10/Mines | Received a Rocket Launcher from a helpful Derelict 1671 | -10/Mines | Assisted by bots powering up and referring to "LRC-V3" 1688 | -10/Mines | Discovered new exit (range 8) 1787 | -10/Mines | Deemed a non-threat by the Exiles lab entrance 1787 | -10/Mines | Discovered new exit (range 5) 1791 | -10/Mines | Entered Exiles 1815 | -10/Exiles | Met 8R-AWN 1830 | -10/Exiles | Met EX-HEX 1897 | -10/Exiles | Met EX-BIN 1910 | -10/Exiles | Aligned with FarCom system 1911 | -10/Exiles | Given EX-Vault access code 1936 | -10/Exiles | Opened EX-Vault 1943 | -10/Exiles | Found 0b10 Alert Chip 1966 | -10/Exiles | Warned to stay clear of 0b10 Research branches 1991 | -10/Exiles | Met EX-DEC 2024 | -10/Exiles | Visited The Gauntlet 2103 | -10/Exiles | Discovered new exit (range 14) 2115 | -10/Exiles | Left Exiles lab with 0b10 Alert Chip 2115 | -10/Exiles | Entered Mines 2166 | -9/Mines | Discovered new exit (range 10) 2176 | -9/Mines | Entered Materials 2176 | -8/Materials | Evolved 4 slots: Propulsion x1, Utility x3 2177 | -8/Materials | Identified Bomb Drone Bay 2290 | -8/Materials | Lost 3 allies 2588 | -8/Materials | Discovered new exit (range 10) 2611 | -8/Materials | Build established: Scavenger-Skirmisher 3211 | -8/Materials | Discovered new exit (range 4) 3216 | -8/Materials | Entered Factory 3216 | -7/Factory | Evolved 2 slots: Propulsion x1, Utility x1 3771 | -7/Factory | Build established: Scout 4699 | -7/Factory | Lost 5 parts (1p1n2u1w) 4946 | -7/Factory | Discovered new exit (range 8) 4958 | -7/Factory | Entered another Factory area 4958 | -6/Factory | Evolved 2 slots: Utility x2 5136 | -6/Factory | Identified exit to DSF 5136 | -6/Factory | Entered DSF 5158 | -6/DSF | Additional patrols routed to DSF 5205 | -6/DSF | Discovered new exit (range 15) 5218 | -6/DSF | Identified exit to Factory 5219 | -6/DSF | Entered Factory 5219 | -5/Factory | Evolved 2 slots: Propulsion x1, Utility x1 5229 | -5/Factory | Lost 5 parts (1p1n2u1w) 5375 | -5/Factory | Lost 6 parts (5n1u) 5466 | -5/Factory | Core integrity fell below 50% 5516 | -5/Factory | Core integrity fell below 20% 5523 | -5/Factory | Destroyed by H-66 Slayer with Heavy Assault Rifle Last Messages --------------- Slug penetrates Wall. Drone sends a signal. Slug penetrates Wall. Penetrated by Slug. Slug penetrates Wall. H-66 Slayer retrieves Drone. Penetrated by Slug. Arm. Wheel destroyed. Slug penetrates Wall. Penetrated by Slug. Microactuators destroyed. Penetrated by Slug. Arm. Wheel destroyed. Slug penetrates Wall. Penetrated by Slug. Slug penetrates Wall. Penetrated by Slug. H-66 Slayer destroyed. Slug penetrates Wall. Penetrated by Slug. Map ----- +----------------------------------------------------+ | + """" ## """""?????????????????? | | # ## """"""????????????????? | | # ## """"""" #???????????? | | ############### #???????????? | | !] #?????????????# """"""" #???????????? | | #?????????????#"" """"""????????????????? | | #?????????????#"T """"""" ? +???????????? | | " #?????????????#"" """"""" #???????????? | | " #?????????????# #???????????? | | " !#?????????????# #???????????? | | " #?????????????## ###########???????????? | | " ##########?????# ##????????????????????? | | " #?????# T#????????????????????? | | " #?????# #????????????????????? | | " ####### ##????????????????????? | | " hh #?????????????????????? | | ####### #?????????????????????? | | #?????# #?????????????????????? | | #?????# #?????????????????????? | | #?????# #?????????????????????? | | ##############"#?????# #?????????????????????? | | ?????????????###?????# #?????????????????????? | | ?????????????????????# ##########????????????? | | ???????????#########?# =!# #????????????? | | ???????????# ?# h[%# #????????????? | | ???????????# "" # @*# #????????????? | | ???????????# G"^# # #????????????? | | ???????????? """ "" + ; / #????????????? | | ???????????? """ # # / #????????????? | | ???????????# """ # # #????????????? | | ???????????# ; # #????????????? | | ???????????# ####### #????????????? | | ???????????##########??????##########????????????? | | ?????????????????????????????????????????????????? | | ?????????????????????????????????????????????????? | | ?????????????????????????????????????????????????? | | ?????????????????????????????????????????????????? | | ?????????????????????????????????????????????????? | | ?????????????????????????????????????????????????? | | ?????????????????????????????????????????????????? | | ?????????????????????????????????????????????????? | | ?????????????????????????????????????????????????? | | | | | | | | | | | | | | | | | +----------------------------------------------------+ Best States ------------- Heat Dissipation 40 Energy Generation 18 Energy Capacity 300 Matter Stores 300 Matter Capacity 300 Sight Range 16 Robot Scan Range 14 Terrain Scan Range 20 Terrain Scan Density 10 Jamming Range 12 Armor Coverage 600 Melee Speed Boost 20 Evasion (%) 74 Recoil Reduction 2 Offensive Hacking 10 Item Schematics ----------------- None Robot Schematics ------------------ None Fabricated ------------ Nothing Alien Tech Used ----------------- None Achievements -------------- Everything Is Under Control Challenges ------------ None Game ------ Seed AntigravTerrabombTearclaws Manual? 0 Play Time 01:23:28 Cumulative 36.2 hours Start 2024.04.06 @ 16:13:11 End 2024.04.06 @ 17:41:10 Sessions 1 Manual Loads 0 Difficulty Rogue Special Mode None Game No. 43 Rogue 43 Adventurer 0 Explorer 0 Win Type - Total 0 Types 0/0/0/0/0/0/0/0/0 Lore% 17 Gallery% 35 Achievement% 26 Wizard Run 0 Options --------- Layout 2 ASCII 0 Keyboard 0 Movement Numpad Keybinds 0 Fullscreen 2 Font 24/Smallcaps Map View 50x44 Zoom Use 0% Tactical HUD 0 Map Filters NONE Filters NONE Steam 1 RUN: 6fcb2a6e-94bf-49e0-8235-dbd1e2e50167